bitfinex/quotes_SOLUSD_20240620
["timestamp","ask_amount","ask_price","bid_price","bid_amount"]
[1718880054325,29.5462,137.75,137.7,7.262]
[1718880055021,29.5462,137.75,137.71,7.2615]
[1718880055393,22.4362,137.75,137.71,7.2615]
[1718880055600,29.5462,137.75,137.71,7.2615]
[1718880056908,22.2865,137.75,137.71,7.2615]
[1718880057313,29.5462,137.75,137.7,7.2619]
[1718880057896,29.5462,137.75,137.7,14.3719]
[1718880058320,29.5462,137.75,137.7,7.2619]
[1718880058520,29.5462,137.75,137.71,7.2615]
[1718880058903,7.2585,137.77,137.71,7.28]
[1718880059107,29.5703,137.78,137.73,14.3702]
[1718880060539,7.2586,137.77,137.72,14.3708]
[1718880061322,7.2586,137.77,137.73,7.2604]
[1718880061643,7.2586,137.77,137.72,7.11]
[1718880061807,7.2586,137.77,137.72,14.3708]
[1718880062007,14.3686,137.77,137.72,14.3708]
[1718880062656,14.3686,137.77,137.73,7.2604]
[1718880063669,14.3686,137.77,137.68,6.1257]
[1718880063670,7.2605,137.73,137.67,20.0]
[1718880063840,7.2605,137.73,137.68,14.3727]
[1718880064460,7.2605,137.73,137.69,7.2626]
[1718880064625,14.3702,137.74,137.69,7.2626]
[1718880065040,7.2605,137.73,137.68,7.2629]
[1718880065234,14.3705,137.73,137.68,14.3729]
[1718880065471,14.3705,137.73,137.69,7.2626]
[1718880065749,14.3705,137.73,137.68,14.3729]
[1718880065961,7.11,137.73,137.69,7.2626]
[1718880066455,7.11,137.75,137.71,7.2615]
[1718880067861,7.11,137.76,137.73,7.2605]
[1718880068037,7.11,137.76,137.72,7.2608]
[1718880069445,7.11,137.75,137.68,0.17]
[1718880069653,7.11,137.74,137.7,7.2619]
[1718880069967,7.11,137.75,137.72,7.2606]
[1718880070169,7.11,137.75,137.67,20.0]
[1718880070170,7.11,137.75,137.69,7.11]
[1718880070358,7.11,137.74,137.69,7.11]
[1718880070550,7.11,137.73,137.67,20.0]
[1718880070741,0.51,137.76,137.67,20.0]
[1718880070742,7.11,137.74,137.7,7.2619]
[1718880071939,14.3701,137.74,137.69,14.3725]
[1718880071962,14.3701,137.74,137.69,7.2625]
[1718880072591,14.3701,137.74,137.69,7.2626]
[1718880072592,7.11,137.73,137.69,7.2626]
[1718880073289,7.11,137.73,137.7,7.2621]
[1718880073954,7.11,137.73,137.71,7.2616]
[1718880074149,7.11,137.73,137.7,7.2619]
[1718880074346,13.4812,137.74,137.7,7.2619]
[1718880075568,6.3712,137.74,137.71,7.2616]
[1718880075774,7.11,137.75,137.72,7.261]
[1718880076566,7.11,137.75,137.71,7.2613]
[1718880079282,7.5991,137.76,137.71,7.2613]
[1718880079463,27.11,137.75,137.71,7.2613]
[1718880080581,27.11,137.75,137.69,7.11]
[1718880080582,27.11,137.75,137.72,7.261]
[1718880080980,20.0,137.75,137.72,7.261]
[1718880081164,27.11,137.76,137.73,7.2604]
[1718880081488,22.3121,137.78,137.74,7.2598]
[1718880081685,22.3121,137.78,137.75,7.2594]
[1718880081888,15.2021,137.78,137.75,7.2594]
[1718880082773,15.2021,137.78,137.74,14.3698]
[1718880082977,22.4601,137.78,137.74,7.2598]
[1718880083369,29.5701,137.78,137.74,7.2598]
[1718880084387,22.3121,137.78,137.74,7.2598]
[1718880086484,22.3121,137.78,137.75,7.2595]
[1718880086978,7.2569,137.8,137.75,7.2595]
[1718880087184,27.11,137.79,137.75,7.2595]
[1718880087358,20.0,137.79,137.74,7.11]
[1718880087563,20.0,137.79,137.76,7.2587]
[1718880087772,20.0,137.79,137.75,7.2592]
[1718880087968,27.11,137.79,137.75,7.2592]
[1718880089282,7.11,137.78,137.74,7.2598]
[1718880091223,7.11,137.78,137.75,7.2594]
[1718880092484,7.11,137.78,137.74,7.2598]
[1718880095507,20.0,137.79,137.72,16.2347]
[1718880095683,7.11,137.79,137.74,7.26]
[1718880095997,14.3675,137.79,137.74,7.26]
[1718880096514,7.11,137.78,137.74,7.26]
[1718880096802,14.3675,137.79,137.74,7.26]
[1718880097384,7.11,137.79,137.72,16.2347]
[1718880097702,7.11,137.76,137.72,7.2607]
[1718880098286,7.11,137.76,137.73,7.2605]
[1718880098486,14.369,137.76,137.71,7.2615]
[1718880098709,7.11,137.75,137.71,7.2615]
[1718880098884,7.259,137.76,137.71,7.2615]
[1718880099089,7.11,137.75,137.72,7.261]
[1718880099503,7.11,137.75,137.73,7.2605]
[1718880099707,7.11,137.76,137.73,7.2605]
[1718880101484,7.11,137.76,137.72,7.2608]
[1718880101682,7.11,137.75,137.71,7.2614]
[1718880102092,7.2591,137.76,137.72,7.261]
[1718880102293,7.11,137.75,137.72,7.261]
[1718880102511,7.11,137.76,137.72,7.261]
[1718880102895,14.3692,137.76,137.71,7.2614]
[1718880103293,23.3645,137.77,137.72,7.2609]
[1718880103510,27.11,137.76,137.72,7.2609]
[1718880103728,34.369,137.76,137.71,7.2615]
[1718880104010,7.11,137.75,137.72,7.2609]
[1718880105190,7.11,137.75,137.71,7.2614]
[1718880106818,14.3699,137.75,137.68,16.1939]
[1718880107117,20.0,137.76,137.72,7.261]
[1718880107318,15.7659,137.77,137.74,7.2595]
[1718880107522,15.7659,137.77,137.72,7.11]
[1718880107771,15.7659,137.77,137.73,7.11]
[1718880108302,15.7659,137.77,137.75,7.2592]
[1718880108810,15.7659,137.77,137.76,7.259]
[1718880109115,15.7659,137.77,137.75,14.3692]
[1718880109312,15.7659,137.77,137.75,7.2592]
[1718880110426,15.7659,137.77,137.76,7.259]
[1718880110799,15.7659,137.77,137.69,0.17]
[1718880111002,30.1344,137.77,137.72,14.3709]
[1718880111220,22.8759,137.77,137.73,7.2602]
[1718880111429,22.8759,137.77,137.72,7.11]
[1718880111615,15.7659,137.77,137.74,7.26]
[1718880112832,15.7659,137.77,137.73,7.2603]
[1718880113173,30.1344,137.77,137.72,14.3709]
[1718880113423,14.3693,137.76,137.71,7.11]
[1718880113621,14.3693,137.76,137.71,7.2614]
[1718880114037,14.3693,137.76,137.72,7.261]
[1718880114332,7.11,137.76,137.72,7.261]
[1718880114709,7.11,137.75,137.71,7.2613]
[1718880115735,7.11,137.75,137.72,7.261]
[1718880117034,7.11,137.75,137.67,20.0]
[1718880117247,7.11,137.74,137.67,20.0]
[1718880117430,7.11,137.73,137.7,7.2621]
[1718880118541,7.11,137.73,137.71,7.2615]
[1718880118838,7.11,137.74,137.71,7.2615]
[1718880119420,7.11,137.75,137.71,7.2615]
[1718880120418,6.3545,137.76,137.72,7.2611]
[1718880120620,20.0,137.75,137.72,7.2611]
[1718880121721,20.0,137.75,137.7,7.11]
[1718880125955,27.11,137.75,137.7,7.11]
[1718880126255,7.11,137.74,137.67,20.0]
[1718880126548,7.11,137.68,137.62,20.5745]
[1718880126835,7.11,137.68,137.62,13.4645]
[1718880127244,7.11,137.68,137.62,20.5745]
[1718880127437,6.2744,137.71,137.62,13.4645]
[1718880127438,7.11,137.67,137.62,13.4645]
[1718880128018,7.11,137.67,137.62,20.5745]
[1718880128640,7.11,137.68,137.62,20.5745]
[1718880128820,7.11,137.69,137.64,7.11]
[1718880129015,20.0,137.68,137.64,7.11]
[1718880129618,20.0,137.69,137.65,7.11]
[1718880129928,20.0,137.69,137.64,7.11]
[1718880130135,27.11,137.7,137.64,7.11]
[1718880130528,7.11,137.69,137.64,7.11]
[1718880130730,20.0,137.68,137.64,7.11]
[1718880131355,20.0,137.68,137.63,0.17]
[1718880131526,20.0,137.68,137.63,7.11]
[1718880131918,20.0,137.68,137.64,7.11]
[1718880132353,20.0,137.68,137.63,7.11]
[1718880134228,27.11,137.68,137.63,7.11]
[1718880135027,7.11,137.67,137.62,7.11]
[1718880135725,20.0,137.68,137.61,7.11]
[1718880135928,7.11,137.67,137.61,7.11]
[1718880136347,7.11,137.66,137.59,6.5918]
[1718880136548,7.11,137.64,137.55,21.7078]
[1718880136767,7.11,137.63,137.57,7.11]
[1718880137243,7.11,137.63,137.58,7.11]
[1718880137656,7.11,137.64,137.58,7.11]
[1718880140547,6.0537,137.65,137.6,7.11]
[1718880140743,20.0,137.64,137.6,7.11]
[1718880142648,20.0,137.65,137.6,7.11]
[1718880143541,15.1126,137.66,137.6,7.11]
[1718880143747,7.11,137.67,137.62,7.11]
[1718880144345,13.4873,137.68,137.62,7.11]
[1718880144546,20.0,137.67,137.62,7.11]
[1718880145146,27.11,137.67,137.62,7.11]
[1718880145334,27.11,137.67,137.61,7.11]
[1718880146750,7.11,137.66,137.6,7.11]
[1718880147462,7.11,137.66,137.61,7.11]
[1718880147960,20.0,137.67,137.62,7.11]
[1718880147961,27.11,137.67,137.62,7.11]
[1718880148337,16.1354,137.69,137.64,7.11]
[1718880149241,7.11,137.68,137.61,15.6828]
[1718880149439,7.11,137.68,137.63,7.11]
[1718880150237,16.1354,137.69,137.57,22.5036]
[1718880150453,7.11,137.67,137.61,7.11]
[1718880150852,7.11,137.67,137.62,7.11]
[1718880151058,20.34,137.68,137.62,7.11]
[1718880151370,7.11,137.66,137.61,7.11]
[1718880151755,7.11,137.66,137.59,0.17]
[1718880151764,7.11,137.66,137.61,7.11]
[1718880152383,7.11,137.66,137.59,0.17]
[1718880152643,7.11,137.67,137.62,7.11]
[1718880152960,27.11,137.68,137.63,7.11]
[1718880153547,20.0,137.68,137.63,7.11]
[1718880153756,27.11,137.68,137.63,7.11]
[1718880155862,7.11,137.67,137.62,7.11]
[1718880156752,7.11,137.67,137.59,0.17]
[1718880156957,7.11,137.67,137.62,7.11]
[1718880157762,27.11,137.68,137.62,7.11]
[1718880158571,20.0,137.68,137.62,7.11]
[1718880158745,27.11,137.68,137.62,7.11]
[1718880159567,20.0,137.68,137.62,7.11]
[1718880159755,20.0,137.68,137.63,7.11]
[1718880159949,27.11,137.68,137.63,7.11]
[1718880160650,33.3136,137.68,137.58,20.0]
[1718880160845,7.11,137.67,137.61,7.11]
[1718880162169,7.11,137.67,137.62,7.11]
[1718880164049,7.11,137.67,137.59,0.17]
[1718880164263,7.11,137.67,137.62,7.11]
[1718880165375,7.11,137.67,137.59,0.34]
[1718880165577,7.11,137.67,137.62,7.11]
[1718880166372,7.11,137.67,137.58,20.0]
[1718880166568,7.11,137.65,137.6,7.11]
[1718880167074,0.17,137.66,137.61,7.11]
[1718880167249,7.45,137.67,137.62,7.11]
[1718880167456,7.11,137.67,137.62,7.11]
[1718880169401,16.1354,137.69,137.65,7.11]
[1718880169981,16.1354,137.69,137.64,7.11]
[1718880174483,16.1354,137.69,137.61,0.17]
[1718880174652,16.1354,137.69,137.64,7.11]
[1718880174975,23.2454,137.69,137.61,0.34]
[1718880175172,23.2454,137.69,137.63,7.11]
[1718880175379,7.11,137.68,137.63,7.11]
[1718880177978,16.1354,137.69,137.63,7.11]
[1718880178180,23.2454,137.69,137.63,7.11]
[1718880178379,7.11,137.68,137.61,0.34]
[1718880178684,7.11,137.68,137.63,7.11]
[1718880179596,7.11,137.68,137.61,0.34]
[1718880179778,7.11,137.68,137.63,7.11]
[1718880180180,7.11,137.68,137.62,7.11]
[1718880180395,7.11,137.67,137.58,20.0]
[1718880180993,7.11,137.67,137.62,7.11]
[1718880181678,7.11,137.68,137.63,7.11]
[1718880181881,16.1354,137.69,137.63,7.11]
[1718880182099,16.1354,137.69,137.64,1.451784]
[1718880182280,6.5553,137.72,137.68,7.11]
[1718880182487,6.5553,137.72,137.63,0.17]
[1718880182702,6.5553,137.72,137.67,7.11]
[1718880185030,13.6653,137.72,137.67,7.11]
[1718880185415,6.5553,137.72,137.67,7.11]
[1718880185794,6.5553,137.72,137.63,0.68]
[1718880185994,13.6653,137.72,137.63,0.68]
[1718880186302,13.6653,137.72,137.63,0.34]
[1718880186499,7.11,137.69,137.64,7.11]
[1718880187533,7.11,137.69,137.63,7.28]
[1718880187895,7.11,137.7,137.65,7.11]
[1718880188432,7.11,137.7,137.64,7.11]
[1718880189330,7.11,137.69,137.64,7.11]
[1718880190459,7.11,137.69,137.59,16.3739]
[1718880190755,6.5553,137.72,137.63,7.11]
[1718880190756,22.464,137.68,137.63,7.11]
[1718880191804,15.354,137.68,137.63,7.11]
[1718880192039,7.11,137.67,137.59,16.3739]
[1718880192298,7.11,137.67,137.62,7.11]
[1718880192474,15.354,137.68,137.62,7.11]
[1718880192645,7.11,137.67,137.62,7.11]
[1718880192845,7.11,137.67,137.59,16.3739]
[1718880193069,7.11,137.67,137.62,7.11]
[1718880194275,15.354,137.68,137.62,7.11]
[1718880194471,27.11,137.67,137.62,7.11]
[1718880195982,20.0,137.67,137.62,7.11]
[1718880196457,7.11,137.63,137.53,37.7738]
[1718880196657,22.705,137.63,137.57,7.11]
[1718880197383,22.705,137.63,137.58,7.11]
[1718880198088,22.705,137.63,137.55,28.44]
[1718880198290,15.595,137.63,137.56,0.17]
[1718880201699,15.595,137.63,137.6,7.11]
[1718880201863,6.4404,137.66,137.62,7.11]
[1718880202200,35.6759,137.67,137.63,7.11]
[1718880203464,35.6759,137.67,137.62,7.11]
[1718880204716,42.7859,137.67,137.62,7.11]
[1718880205000,35.6759,137.67,137.63,7.11]
[1718880205399,15.6759,137.67,137.64,7.11]
[1718880206598,15.6759,137.67,137.63,7.11]
[1718880207878,22.7859,137.67,137.58,21.9221]
[1718880208082,22.7859,137.67,137.61,7.11]
[1718880208673,15.6759,137.67,137.61,7.11]
[1718880208883,22.7859,137.67,137.61,7.11]
[1718880210599,22.7859,137.67,137.59,0.17]
[1718880210799,22.7859,137.67,137.61,7.11]
[1718880211183,15.6759,137.67,137.61,7.11]
[1718880211410,7.11,137.66,137.61,7.11]
[1718880214601,7.11,137.66,137.57,0.17]
[1718880214801,6.542,137.64,137.55,6.3025]
[1718880215014,7.11,137.63,137.58,7.11]
[1718880216402,7.11,137.63,137.56,0.17]
[1718880216599,16.6287,137.62,137.56,0.17]
[1718880216781,16.6287,137.62,137.55,0.17]
[1718880216983,16.6287,137.62,137.58,7.11]
[1718880217905,23.7387,137.62,137.57,7.11]
[1718880219888,23.7387,137.62,137.51,6.3582]
[1718880220092,7.45,137.61,137.51,6.3582]
[1718880220355,7.11,137.58,137.5,15.2863]
[1718880220548,6.3944,137.59,137.52,7.11]
[1718880220864,7.11,137.58,137.53,7.11]
[1718880221303,22.2553,137.57,137.48,28.44]
[1718880221504,22.2553,137.57,137.52,7.11]
[1718880225113,15.1453,137.57,137.52,7.11]
[1718880225490,15.1453,137.57,137.53,7.11]
[1718880226004,15.1453,137.57,137.55,7.2697]
[1718880226502,22.2553,137.57,137.55,7.2697]
[1718880226897,22.2553,137.57,137.56,7.2695]
[1718880226898,15.1453,137.57,137.56,7.2695]
[1718880227312,22.2553,137.57,137.55,7.2699]
[1718880227658,7.11,137.56,137.54,7.2703]
[1718880228616,7.11,137.56,137.43,22.2553]
[1718880228617,27.11,137.55,137.52,7.2713]
[1718880228786,7.11,137.54,137.52,7.2713]
[1718880229499,7.11,137.54,137.53,7.2711]
[1718880230086,27.11,137.55,137.53,7.2711]
[1718880231007,27.11,137.55,137.5,7.11]
[1718880231008,27.11,137.55,137.52,7.2714]
[1718880231232,27.11,137.55,137.51,7.2721]
[1718880231430,7.11,137.54,137.51,7.2721]
[1718880232113,7.11,137.54,137.5,7.2726]
[1718880233029,7.11,137.54,137.51,7.2721]
[1718880233218,27.6101,137.55,137.48,7.2737]
[1718880233219,7.2716,137.52,137.48,7.2737]
[1718880233419,7.11,137.5,137.48,7.2737]
[1718880233719,7.11,137.51,137.48,7.2737]
[1718880233912,29.3215,137.53,137.49,7.2731]
[1718880233913,28.9902,137.53,137.49,7.2731]
[1718880234118,20.0,137.52,137.5,7.2726]
[1718880235150,20.0,137.52,137.49,7.273]
[1718880235430,20.0,137.52,137.5,7.2726]
[1718880236305,21.5402,137.53,137.5,7.2726]
[1718880236507,28.6502,137.53,137.49,7.273]
[1718880236706,28.6502,137.53,137.5,7.2727]
[1718880237029,28.6502,137.53,137.49,7.2731]
[1718880237215,35.9214,137.53,137.48,14.3836]
[1718880237824,35.9214,137.53,137.5,7.2725]
[1718880237825,15.4386,137.53,137.5,7.2725]
[1718880238006,15.4386,137.53,137.47,0.17]
[1718880238007,22.7021,137.56,137.51,7.272]
[1718880238221,22.5424,137.56,137.52,7.2716]
[1718880238624,29.812,137.56,137.52,7.2716]
[1718880238818,22.5424,137.56,137.52,7.2716]
[1718880239018,15.4324,137.56,137.52,7.2716]
[1718880239225,22.5424,137.56,137.52,7.2716]
[1718880239416,29.8119,137.56,137.52,7.2716]
[1718880239611,29.8119,137.56,137.51,7.272]
[1718880239918,29.8119,137.56,137.51,14.382]
[1718880240318,22.7019,137.56,137.51,14.382]
[1718880240611,29.8119,137.56,137.51,14.382]
[1718880242035,15.4324,137.56,137.52,14.3815]
[1718880242223,21.3876,137.6,137.55,7.2699]
[1718880242409,20.0,137.59,137.55,14.3799]
[1718880242610,20.0,137.59,137.56,14.3794]
[1718880244016,20.0,137.59,137.56,7.2694]
[1718880245023,20.0,137.59,137.55,7.2698]
[1718880245219,35.765,137.6,137.55,14.3798]
[1718880245555,28.4976,137.6,137.56,7.2694]
[1718880245908,35.7653,137.6,137.55,7.2699]
[1718880247618,35.7653,137.6,137.56,7.2694]
[1718880249034,35.7653,137.6,137.55,7.2698]
[1718880249242,14.3781,137.59,137.54,7.2705]
[1718880250617,7.11,137.59,137.55,7.27]
[1718880250807,7.11,137.59,137.56,7.2695]
[1718880251237,7.11,137.59,137.55,7.2699]
[1718880251641,21.3876,137.6,137.56,7.2695]
[1718880251943,15.3526,137.6,137.57,7.2686]
[1718880252110,15.3526,137.6,137.56,14.3793]
[1718880253520,21.7304,137.64,137.56,7.11]
[1718880253743,27.6058,137.63,137.59,7.2679]
[1718880253950,34.3758,137.63,137.59,7.2679]
[1718880254116,27.11,137.63,137.59,7.2679]
[1718880254319,7.11,137.63,137.59,7.2679]
[1718880255134,36.1058,137.64,137.59,7.2679]
[1718880255857,15.1151,137.64,137.6,14.3773]
[1718880257150,15.1151,137.64,137.6,7.11]
[1718880257353,15.1151,137.64,137.6,14.3774]
[1718880257524,15.1151,137.64,137.6,7.2674]
[1718880257722,22.2251,137.64,137.62,7.2662]
[1718880257919,15.1151,137.64,137.61,7.2667]
[1718880258653,7.2648,137.65,137.61,7.2667]
[1718880259024,7.2645,137.66,137.61,7.2667]
[1718880259238,7.2648,137.65,137.6,14.3772]
[1718880259550,7.2648,137.65,137.61,7.2668]
[1718880259730,14.3745,137.66,137.61,7.2668]
[1718880261340,7.11,137.66,137.62,7.2663]
[1718880261545,13.9183,137.67,137.62,7.2663]
[1718880261730,21.0283,137.67,137.63,7.2658]
[1718880262136,13.7645,137.67,137.63,7.2658]
[1718880263849,21.0282,137.67,137.63,7.2658]
[1718880264352,21.0282,137.67,137.62,7.2661]
[1718880265943,7.11,137.66,137.62,7.2661]
[1718880266935,21.0282,137.67,137.62,7.2661]
[1718880268556,13.9182,137.67,137.63,7.2658]
[1718880268756,7.11,137.67,137.63,7.2658]
[1718880269257,14.3738,137.67,137.63,7.2658]
[1718880269432,7.2638,137.67,137.63,7.2658]
[1718880269747,14.3738,137.67,137.62,14.3761]
[1718880271498,7.2638,137.67,137.62,14.3761]
[1718880271952,14.3738,137.67,137.62,14.3761]
[1718880272758,14.3738,137.67,137.62,7.2661]
[1718880273632,7.11,137.66,137.6,7.2674]
[1718880273968,7.11,137.64,137.55,21.4425]
[1718880274129,14.3754,137.64,137.59,14.3775]
[1718880274527,14.3754,137.64,137.6,7.2672]
[1718880275260,7.11,137.64,137.55,21.4425]
[1718880275460,7.11,137.63,137.59,7.2679]
[1718880276133,7.11,137.63,137.6,7.2673]
[1718880276351,7.11,137.63,137.61,7.2668]
[1718880276541,7.11,137.64,137.61,7.2668]
[1718880277261,14.3753,137.64,137.6,7.2673]
[1718880277433,14.3753,137.64,137.59,7.2679]
[1718880277633,14.3753,137.64,137.56,0.17]
[1718880277859,7.11,137.64,137.6,7.2672]
[1718880278557,7.11,137.64,137.55,49.8825]
[1718880278733,7.11,137.63,137.58,7.11]
[1718880278935,7.11,137.64,137.58,7.11]
[1718880279237,27.11,137.64,137.61,7.2668]
[1718880279933,20.0,137.64,137.6,7.2672]
[1718880280135,34.3753,137.64,137.59,7.11]
[1718880280451,7.11,137.63,137.58,7.11]
[1718880281272,27.11,137.64,137.58,7.11]
[1718880281568,20.0,137.64,137.61,7.2667]
[1718880283341,27.11,137.64,137.61,7.2667]
[1718880284468,27.11,137.64,137.6,7.2672]
[1718880285559,20.0,137.64,137.6,7.2672]
[1718880287744,27.2653,137.64,137.6,7.2672]
[1718880289152,20.0,137.64,137.61,14.3768]
[1718880289462,20.0,137.64,137.56,0.17]
[1718880289463,7.2637,137.67,137.62,14.3762]
[1718880289668,30.373,137.68,137.63,14.3757]
[1718880289874,20.0,137.67,137.63,14.3757]
[1718880290240,20.0,137.67,137.56,0.34]
[1718880290555,20.0,137.67,137.63,14.3756]
[1718880290951,27.2639,137.67,137.62,7.2661]
[1718880291173,27.2639,137.67,137.63,7.11]
[1718880293148,27.2639,137.67,137.62,14.3761]
[1718880293348,34.3739,137.67,137.62,14.3761]
[1718880296752,7.265,137.65,137.58,0.17]
[1718880296945,7.265,137.65,137.61,7.11]
[1718880297147,14.7145,137.66,137.61,14.3768]
[1718880297369,7.45,137.66,137.6,7.11]
[1718880297563,7.265,137.65,137.6,7.2671]
[1718880297749,7.265,137.65,137.6,14.3771]
[1718880298061,7.265,137.65,137.61,7.2668]
[1718880298465,14.7145,137.66,137.61,7.2668]
[1718880298648,14.3745,137.66,137.61,7.2668]
[1718880299074,14.3745,137.66,137.61,14.3768]
[1718880299876,14.3745,137.66,137.61,7.2668]
[1718880300075,14.3745,137.66,137.61,14.3768]
[1718880300284,7.2648,137.65,137.6,7.2672]
[1718880300591,14.3748,137.65,137.61,7.2667]
[1718880301075,7.11,137.65,137.61,7.2667]
[1718880302725,7.11,137.65,137.6,7.2672]
[1718880302985,7.11,137.64,137.6,7.2672]
[1718880303275,20.0,137.67,137.6,7.11]
[1718880303481,15.9998,137.68,137.63,7.11]
[1718880303663,23.1098,137.68,137.64,7.2652]
[1718880304559,15.9998,137.68,137.65,7.2647]
[1718880305381,15.9998,137.68,137.64,7.2651]
[1718880306270,7.11,137.67,137.63,7.2656]
[1718880306664,14.3741,137.67,137.62,7.2662]
[1718880306868,14.3745,137.66,137.61,7.2667]
[1718880307064,14.3745,137.66,137.61,14.3767]
[1718880307287,14.375,137.65,137.6,7.11]
[1718880307473,7.11,137.65,137.6,7.11]
[1718880307671,7.11,137.65,137.61,7.2666]
[1718880308196,7.11,137.65,137.62,7.2663]
[1718880309381,7.11,137.66,137.62,7.266]
[1718880310684,0.17,137.67,137.55,15.8486]
[1718880310893,7.11,137.63,137.59,7.2677]
[1718880311420,7.11,137.64,137.6,7.2672]
[1718880311781,20.0,137.63,137.61,7.2667]
[1718880312088,20.0,137.63,137.55,22.9586]
[1718880312089,7.11,137.65,137.62,7.2663]
[1718880312315,20.0,137.64,137.61,7.2667]
[1718880313482,7.2644,137.66,137.61,14.3767]
[1718880313685,20.0,137.65,137.61,14.3767]
[1718880314190,15.9998,137.68,137.64,7.11]
[1718880314421,20.0,137.67,137.64,7.11]
[1718880314777,15.9998,137.68,137.65,14.3747]
[1718880315178,6.0399,137.69,137.65,14.3747]
[1718880315384,20.0,137.68,137.65,14.3747]
[1718880315577,20.0,137.68,137.65,7.11]
[1718880316095,20.0,137.68,137.64,14.3751]
[1718880316971,20.0,137.68,137.65,7.11]
[1718880317288,20.0,137.68,137.6,16.1106]
[1718880317289,13.2677,137.72,137.67,14.3736]
[1718880317480,20.0,137.71,137.68,7.11]
[1718880319110,7.2587,137.77,137.71,7.4312]
[1718880319409,15.1519,137.78,137.74,7.11]
[1718880319569,7.2579,137.78,137.74,7.11]
[1718880320194,7.11,137.79,137.74,14.3699]
[1718880320494,20.0,137.78,137.74,14.3699]
[1718880320703,34.5757,137.84,137.76,7.11]
[1718880320994,7.257,137.8,137.76,7.11]
[1718880321374,7.2559,137.82,137.77,7.11]
[1718880321592,7.2554,137.83,137.77,14.368]
[1718880321774,7.11,137.82,137.77,7.11]
[1718880321972,14.3658,137.82,137.77,14.3682]
[1718880322271,14.3666,137.81,137.76,7.11]
[1718880322675,7.11,137.81,137.76,7.11]
[1718880322874,7.2554,137.83,137.77,7.11]
[1718880323084,27.11,137.82,137.77,7.11]
[1718880323292,34.366,137.82,137.77,7.11]
[1718880325085,34.366,137.82,137.75,0.17]
[1718880325390,27.11,137.82,137.77,7.11]
[1718880325593,27.11,137.82,137.75,0.17]
[1718880325594,20.0,137.82,137.78,7.11]
[1718880327273,18.1346,137.86,137.75,0.17]
[1718880327274,7.2537,137.86,137.75,0.17]
[1718880327576,27.11,137.85,137.8,7.11]
[1718880329691,34.3642,137.85,137.8,7.11]
[1718880329879,20.0,137.85,137.8,7.11]